[Event "Cracovia Festival-A 2023"]
[Site "Krakow"]
[Date "2024.01.02"]
[Round "6.34"]
[White "Berin, Artem"]
[Black "Valiyev, Shahin"]
[Result "0-1"]
[ECO "D31"]
[WhiteElo "2321"]
[BlackElo "2158"]
[Annotator "RC"]
[PlyCount "66"]
[EventDate "2023.12.24"]
[EventType "swiss"]
[EventCountry "POL"]
[SourceTitle "playchess.com"]
[Source "ChessBase"]
[SourceQuality "1"]
[TimeControl "40/5400+30:1800+30"]

1. d4 {[%emt 0:00:04]} d5 {[%emt 0:00:10]} 2. c4 {[%emt 0:00:21]} e6 {[%emt 0:00:07]} 3. Nc3 {[%emt 0:00:07]} Be7 {[%emt 0:00:07]} 4. cxd5 {[%emt 0:00:11]} exd5 {[%emt 0:00:12]} 5. Bf4 {[%emt 0:00:08]} c6 {[%emt 0:00:09]} 6. e3 {[%emt 0:00:07]} Bf5 {[%emt 0:00:35]} 7. g4 {[%emt 0:00:23]} Be6 {[%emt 0:00:05]} 8. Bd3 {[%emt 0:00:09]} Nd7 {[%emt 0:02:16]} 9. h3 {[%emt 0:00:14]} g5 {[%emt 0:03:48]} 10. Bh2 {[%emt 0:00:59]} h5 {[%emt 0:04:43]} 11. gxh5 {[%emt 0:02:53]} Ngf6 {[%emt 0:00:11]} 12. Qc2 {[%emt 0:03:18]} Rxh5 {[%emt 0:01:37]} 13. O-O-O {[%emt 0:01:47]} Qa5 {[%emt 0:22:16]} 14. a3 {[%emt 0:09:46]} b5 {[%emt 0:09:10]} 15. Kb1 {[%emt 0:04:50]} b4 {[%emt 0:13:33]} 16. axb4 {[%emt 0:01:09]} Bxb4 {[%emt 0:00:23]} 17. Na2 {[%emt 0:01:35]} c5 {[%emt 0:06:35]} 18. Nxb4 {[%emt 0:05:02]} Qxb4 {[%emt 0:00:06]} 19. Bd6 {[%emt 0:00:11]} Rc8 {[%emt 0:02:14]} 20. dxc5 {[%emt 0:16:02]} Nxc5 {[%emt 0:05:51]} 21. Qe2 {[%emt 0:18:15]} Nfe4 {[%emt 0:06:12]} 22. Bb5+ {[%emt 0:11:30]} Kd8 {[%emt 0:01:41]} 23. Be5 {[%emt 0:02:54]} Bf5 {[%emt 0:03:44]} 24. Rxd5+ {[%emt 0:01:46]} Ke7 {[%emt 0:01:48]} 25. Bf6+ {[%emt 0:06:05]} Kxf6 {[%emt 0:00:29]} 26. Rxf5+ {[%emt 0:00:19]} Kxf5 {[%emt 0:00:04]} 27. Qg4+ {[%emt 0:00:12]} Kg6 {[%emt 0:00:55]} 28. Qxc8 {[%emt 0:00:14]} Qe1+ {[%emt 0:04:46]} 29. Ka2 {[%emt 0:00:55]} Qa5+ {[%emt 0:00:14]} 30. Kb1 {[%emt 0:00:06]} Qxb5 {[%emt 0:00:01]} 31. Nf3 {[%emt 0:00:10]} Qd3+ {[%emt 0:01:17]} 32. Ka2 {[%emt 0:00:12]} Nc3+ {[%emt 0:02:56]} 33. Ka3 {[%emt 0:00:55]} Nd5+ {[%emt 0:00:10]} 0-1

[Event "Cracovia Festival-A 2023"]
[Site "Krakow"]
[Date "2024.01.02"]
[Round "6.35"]
[White "Gorkiewicz, Mateusz"]
[Black "Kyc, Jerzy"]
[Result "1-0"]
[ECO "B54"]
[WhiteElo "2147"]
[BlackElo "2304"]
[Annotator "RC"]
[PlyCount "111"]
[EventDate "2023.12.24"]
[EventType "swiss"]
[EventCountry "POL"]
[SourceTitle "playchess.com"]
[Source "ChessBase"]
[SourceQuality "1"]
[TimeControl "40/5400+30:1800+30"]

1. e4 {[%emt 0:00:03]} c5 {[%emt 0:00:38]} 2. Nf3 {[%emt 0:00:11]} d6 {[%emt 0:00:19]} 3. d4 {[%emt 0:00:09]} cxd4 {[%emt 0:00:02]} 4. Nxd4 {[%emt 0:00:10]} Nf6 {[%emt 0:00:03]} 5. f3 {[%emt 0:00:18]} e5 {[%emt 0:05:04]} 6. Nb3 {[%emt 0:00:08]} Be6 {[%emt 0:01:24]} 7. c4 {[%emt 0:00:15]} Be7 {[%emt 0:00:43]} 8. Nc3 {[%emt 0:03:00]} O-O {[%emt 0:02:32]} 9. Be3 {[%emt 0:00:19]} Nbd7 {[%emt 0:12:58]} 10. Be2 {[%emt 0:02:52]} Qb8 {[%emt 0:14:33]} 11. O-O {[%emt 0:03:55]} Rc8 {[%emt 0:02:20]} 12. Nd5 {[%emt 0:02:37]} Bxd5 {[%emt 0:02:58]} 13. cxd5 {[%emt 0:00:29]} Bd8 {[%emt 0:00:06]} 14. Qd3 {[%emt 0:16:26]} Bb6 {[%emt 0:05:45]} 15. Rfc1 {[%emt 0:01:12]} Rxc1+ {[%emt 0:16:24]} 16. Rxc1 {[%emt 0:00:45]} Qd8 {[%emt 0:08:11]} 17. g3 {[%emt 0:19:15]} Rc8 {[%emt 0:03:23]} 18. Rc3 {[%emt 0:02:15]} Rxc3 {[%emt 0:00:52]} 19. Qxc3 {[%emt 0:00:54]} Bxe3+ {[%emt 0:00:08]} 20. Qxe3 {[%emt 0:00:05]} a6 {[%emt 0:00:30]} 21. Qa7 {[%emt 0:08:52]} Qc8 {[%emt 0:05:18]} 22. Na5 {[%emt 0:08:12]} Qc1+ {[%emt 0:01:34]} 23. Bf1 {[%emt 0:08:03]} Qxb2 {[%emt 0:09:38]} 24. Nxb7 {[%emt 0:01:01]} Qxa2 {[%emt 0:01:17]} 25. Nxd6 {[%emt 0:09:21]} Qa3 {[%emt 0:02:17]} 26. Nc4 {[%emt 0:02:57]} Qc3 {[%emt 0:01:38]} 27. Kf2 {[%emt 0:00:41]} g5 {[%emt 0:01:54]} 28. Qe3 {[%emt 0:01:36]} Qc2+ {[%emt 0:01:08]} 29. Qd2 {[%emt 0:03:42]} Qxd2+ {[%emt 0:00:20]} 30. Nxd2 {[%emt 0:00:04]} Nc5 {[%emt 0:00:28]} 31. Nc4 {[%emt 0:00:47]} g4 {[%emt 0:00:39]} 32. Nxe5 {[%emt 0:00:43]} gxf3 {[%emt 0:00:01]} 33. Kxf3 {[%emt 0:00:20]} Nfxe4 {[%emt 0:00:54]} 34. Ke3 {[%emt 0:04:23]} a5 {[%emt 0:00:55]} 35. Nc4 {[%emt 0:00:48]} a4 {[%emt 0:00:19]} 36. Kd4 {[%emt 0:00:07]} f5 {[%emt 0:00:41]} 37. Bh3 {[%emt 0:01:22]} Nb3+ {[%emt 0:00:29]} 38. Ke5 {[%emt 0:00:09]} Ned2 {[%emt 0:00:29]} 39. Na3 {[%emt 0:00:57]} Na5 {[%emt 0:00:33]} 40. Bxf5 {[%emt 0:00:00]} Nac4+ {[%emt 0:00:00]} 41. Nxc4 {[%emt 0:00:59]} Nxc4+ {[%emt 0:00:26]} 42. Kd4 {[%emt 0:17:38]} a3 {[%emt 0:00:28]} 43. Bb1 {[%emt 0:03:25]} Nd2 {[%emt 0:03:05]} 44. Ba2 {[%emt 0:00:08]} Kf8 {[%emt 0:02:38]} 45. h3 {[%emt 0:03:51]} Ke7 {[%emt 0:01:41]} 46. Ke3 {[%emt 0:02:14]} Nf1+ {[%emt 0:00:04]} 47. Kf4 {[%emt 0:00:08]} Kd6 {[%emt 0:03:39]} 48. g4 {[%emt 0:00:08]} Nd2 {[%emt 0:01:30]} 49. h4 {[%emt 0:00:17]} Kc5 {[%emt 0:00:52]} 50. g5 {[%emt 0:00:36]} Nc4 {[%emt 0:00:03]} 51. h5 {[%emt 0:01:14]} Nd6 {[%emt 0:05:19]} 52. g6 {[%emt 0:03:30]} hxg6 {[%emt 0:00:08]} 53. hxg6 {[%emt 0:01:06]} Ne8 {[%emt 0:00:39]} 54. Ke5 {[%emt 0:00:10]} Ng7 {[%emt 0:02:16]} 55. Kf6 {[%emt 0:00:13]} Nh5+ {[%emt 0:01:12]} 56. Kf7 {[%emt 0:00:16]} 1-0

[Event "Cracovia Festival-A 2023"]
[Site "Krakow"]
[Date "2024.01.02"]
[Round "6.36"]
[White "Marszalek, Maciej"]
[Black "Kazantzoglou, Stefanos"]
[Result "1/2-1/2"]
[ECO "A06"]
[WhiteElo "2269"]
[BlackElo "2152"]
[Annotator "RC"]
[PlyCount "87"]
[EventDate "2023.12.24"]
[EventType "swiss"]
[EventCountry "POL"]
[SourceTitle "playchess.com"]
[Source "ChessBase"]
[SourceQuality "1"]
[TimeControl "40/5400+30:1800+30"]

1. Nf3 {[%emt 0:00:44]} d5 {[%emt 0:00:05]} 2. e3 {[%emt 0:00:08]} Nf6 {[%emt 0:00:43]} 3. b3 {[%emt 0:00:55]} e6 {[%emt 0:02:31]} 4. c4 {[%emt 0:00:43]} Bd6 {[%emt 0:01:36]} 5. Be2 {[%emt 0:02:09]} dxc4 {[%emt 0:01:33]} 6. bxc4 {[%emt 0:00:18]} O-O {[%emt 0:01:04]} 7. Bb2 {[%emt 0:00:41]} b6 {[%emt 0:04:04]} 8. O-O {[%emt 0:06:09]} Bb7 {[%emt 0:00:06]} 9. Nc3 {[%emt 0:00:08]} Nbd7 {[%emt 0:02:53]} 10. d4 {[%emt 0:00:43]} a6 {[%emt 0:05:08]} 11. Qb3 {[%emt 0:03:04]} e5 {[%emt 0:08:19]} 12. Ba3 {[%emt 0:20:36]} Bxa3 {[%emt 0:04:59]} 13. Qxa3 {[%emt 0:00:15]} exd4 {[%emt 0:01:07]} 14. exd4 {[%emt 0:00:53]} Ne4 {[%emt 0:07:15]} 15. Nxe4 {[%emt 0:05:46]} Bxe4 {[%emt 0:00:08]} 16. Nd2 {[%emt 0:01:28]} Bb7 {[%emt 0:14:09]} 17. Bf3 {[%emt 0:07:12]} Bxf3 {[%emt 0:00:03]} 18. Nxf3 {[%emt 0:00:14]} Re8 {[%emt 0:04:47]} 19. Rfe1 {[%emt 0:01:31]} a5 {[%emt 0:02:33]} 20. Rxe8+ {[%emt 0:03:50]} Qxe8 {[%emt 0:00:02]} 21. Re1 {[%emt 0:00:10]} Qf8 {[%emt 0:00:12]} 22. Qa4 {[%emt 0:02:18]} Rd8 {[%emt 0:05:18]} 23. Qc6 {[%emt 0:01:37]} Qd6 {[%emt 0:00:24]} 24. Qxd6 {[%emt 0:01:01]} cxd6 {[%emt 0:00:02]} 25. Rb1 {[%emt 0:02:06]} Rc8 {[%emt 0:00:50]} 26. Nd2 {[%emt 0:00:48]} d5 {[%emt 0:11:21]} 27. cxd5 {[%emt 0:03:34]} Rc2 {[%emt 0:00:10]} 28. Nf1 {[%emt 0:01:00]} Rxa2 {[%emt 0:01:05]} 29. Rc1 {[%emt 0:00:02]} Ra4 {[%emt 0:00:15]} 30. Rc8+ {[%emt 0:01:03]} Nf8 {[%emt 0:00:01]} 31. g3 {[%emt 0:01:37]} Rxd4 {[%emt 0:00:40]} 32. Ne3 {[%emt 0:00:01]} g6 {[%emt 0:00:55]} 33. Rb8 {[%emt 0:02:31]} Rb4 {[%emt 0:02:27]} 34. d6 {[%emt 0:07:21]} Kg7 {[%emt 0:00:27]} 35. Nd5 {[%emt 0:01:42]} Rd4 {[%emt 0:03:00]} 36. Nc7 {[%emt 0:01:01]} Nd7 {[%emt 0:04:11]} 37. Ne8+ {[%emt 0:02:01]} Kh6 {[%emt 0:00:01]} 38. Rb7 {[%emt 0:00:19]} Re4 {[%emt 0:01:13]} 39. Rxd7 {[%emt 0:07:33]} Rxe8 {[%emt 0:00:01]} 40. Rb7 {[%emt 0:00:00]} Rd8 {[%emt 0:00:00]} 41. Rxb6 {[%emt 0:01:04]} a4 {[%emt 0:03:42]} 42. Ra6 {[%emt 0:00:31]} a3 {[%emt 0:00:08]} 43. Rxa3 {[%emt 0:00:13]} Rxd6 {[%emt 0:00:07]} 44. h4 {[%emt 0:00:08]} 1/2-1/2

[Event "Cracovia Festival-A 2023"]
[Site "Krakow"]
[Date "2024.01.02"]
[Round "6.37"]
[White "Ramirez Garcia, Jorge Alberto"]
[Black "Gaurav Rajesh Zagade"]
[Result "1/2-1/2"]
[ECO "C44"]
[WhiteElo "2249"]
[BlackElo "2126"]
[Annotator "RC"]
[PlyCount "37"]
[EventDate "2023.12.24"]
[EventType "swiss"]
[EventCountry "POL"]
[SourceTitle "playchess.com"]
[Source "ChessBase"]
[SourceQuality "1"]
[TimeControl "40/5400+30:1800+30"]

1. e4 {[%emt 0:06:56]} e5 {[%emt 0:00:10]} 2. Nf3 {[%emt 0:00:10]} Nc6 {[%emt 0:00:10]} 3. d4 {[%emt 0:01:00]} exd4 {[%emt 0:00:09]} 4. Nxd4 {[%emt 0:00:06]} Nf6 {[%emt 0:00:27]} 5. Nc3 {[%emt 0:03:05]} Bb4 {[%emt 0:01:08]} 6. Nxc6 {[%emt 0:00:11]} bxc6 {[%emt 0:00:22]} 7. Bd3 {[%emt 0:00:06]} d5 {[%emt 0:02:48]} 8. exd5 {[%emt 0:00:23]} O-O {[%emt 0:00:21]} 9. O-O {[%emt 0:00:10]} Bg4 {[%emt 0:00:34]} 10. Be2 {[%emt 0:01:02]} Bxe2 {[%emt 0:02:09]} 11. Nxe2 {[%emt 0:01:01]} cxd5 {[%emt 0:01:48]} 12. Bg5 {[%emt 0:03:00]} Be7 {[%emt 0:04:34]} 13. Nd4 {[%emt 0:04:07]} Qd7 {[%emt 0:02:19]} 14. Qd3 {[%emt 0:06:42]} Qg4 {[%emt 0:09:38]} 15. Nc6 {[%emt 0:01:43]} Qxg5 {[%emt 0:01:08]} 16. Nxe7+ {[%emt 0:00:08]} Kh8 {[%emt 0:00:04]} 17. Rad1 {[%emt 0:07:16]} Qe5 {[%emt 0:03:39]} 18. Nxd5 {[%emt 0:07:14]} Rad8 {[%emt 0:06:27]} 19. c4 {[%emt 0:01:00]} 1/2-1/2

[Event "Cracovia Festival-A 2023"]
[Site "Krakow"]
[Date "2024.01.02"]
[Round "6.38"]
[White "Zarnowski, Krzysztof"]
[Black "Fishchuk, Vladyslav"]
[Result "1-0"]
[ECO "D37"]
[WhiteElo "2114"]
[BlackElo "2198"]
[Annotator "RC"]
[PlyCount "111"]
[EventDate "2023.12.24"]
[EventType "swiss"]
[EventCountry "POL"]
[SourceTitle "playchess.com"]
[Source "ChessBase"]
[SourceQuality "1"]
[TimeControl "40/5400+30:1800+30"]

1. Nf3 {[%emt 0:00:11]} d5 {[%emt 0:02:24]} 2. d4 {[%emt 0:00:38]} Nf6 {[%emt 0:00:07]} 3. c4 {[%emt 0:00:14]} e6 {[%emt 0:00:03]} 4. Nc3 {[%emt 0:00:14]} Nbd7 {[%emt 0:00:06]} 5. Bg5 {[%emt 0:00:40]} Bb4 {[%emt 0:00:06]} 6. cxd5 {[%emt 0:01:09]} exd5 {[%emt 0:00:04]} 7. e3 {[%emt 0:03:08]} c5 {[%emt 0:00:11]} 8. Bd3 {[%emt 0:03:01]} Qa5 {[%emt 0:00:22]} 9. O-O {[%emt 0:02:24]} c4 {[%emt 0:04:13]} 10. Bf5 {[%emt 0:00:45]} O-O {[%emt 0:01:05]} 11. Qc2 {[%emt 0:06:32]} Re8 {[%emt 0:00:18]} 12. Nd2 {[%emt 0:05:06]} g6 {[%emt 0:00:06]} 13. Bh3 {[%emt 0:04:24]} Kg7 {[%emt 0:00:07]} 14. a3 {[%emt 0:13:00]} Bxc3 {[%emt 0:00:59]} 15. Qxc3 {[%emt 0:00:31]} Qxc3 {[%emt 0:05:43]} 16. bxc3 {[%emt 0:00:06]} h6 {[%emt 0:04:51]} 17. Bxf6+ {[%emt 0:07:48]} Nxf6 {[%emt 0:00:07]} 18. Bxc8 {[%emt 0:00:06]} Raxc8 {[%emt 0:00:10]} 19. Rfb1 {[%emt 0:03:16]} Re7 {[%emt 0:00:43]} 20. a4 {[%emt 0:01:07]} Kf8 {[%emt 0:11:09]} 21. Rb5 {[%emt 0:00:56]} Ke8 {[%emt 0:01:06]} 22. Nf1 {[%emt 0:04:41]} a6 {[%emt 0:04:15]} 23. Rb2 {[%emt 0:02:15]} Ne4 {[%emt 0:00:48]} 24. Rc1 {[%emt 0:01:38]} Nd6 {[%emt 0:07:54]} 25. f3 {[%emt 0:01:08]} Kd7 {[%emt 0:01:14]} 26. Kf2 {[%emt 0:00:43]} Kc7 {[%emt 0:06:16]} 27. g4 {[%emt 0:02:06]} f5 {[%emt 0:07:28]} 28. gxf5 {[%emt 0:04:57]} Nxf5 {[%emt 0:00:39]} 29. Rcb1 {[%emt 0:01:15]} Nd6 {[%emt 0:00:11]} 30. Re2 {[%emt 0:02:09]} Rf8 {[%emt 0:01:41]} 31. Kg2 {[%emt 0:05:51]} Nf5 {[%emt 0:02:05]} 32. e4 {[%emt 0:06:00]} Nh4+ {[%emt 0:01:24]} 33. Kg3 {[%emt 0:00:12]} Nxf3 {[%emt 0:07:04]} 34. Ne3 {[%emt 0:00:33]} Ref7 {[%emt 0:02:19]} 35. Nxd5+ {[%emt 0:00:10]} Kc8 {[%emt 0:00:12]} 36. Nb6+ {[%emt 0:01:01]} Kb8 {[%emt 0:01:14]} 37. e5 {[%emt 0:09:12]} Ka7 {[%emt 0:04:53]} 38. e6 {[%emt 0:04:27]} Rf5 {[%emt 0:02:44]} 39. e7 {[%emt 0:01:28]} Nxd4 {[%emt 0:01:56]} 40. Re3 {[%emt 0:00:00]} Ne2+ {[%emt 0:00:00]} 41. Kg2 {[%emt 0:07:59]} Nf4+ {[%emt 0:09:00]} 42. Kh1 {[%emt 0:00:19]} Re8 {[%emt 0:00:26]} 43. Nxc4 {[%emt 0:02:46]} Nd5 {[%emt 0:01:16]} 44. Nd6 {[%emt 0:01:32]} Nxe3 {[%emt 0:01:07]} 45. Nxe8 {[%emt 0:00:08]} Re5 {[%emt 0:00:46]} 46. Nd6 {[%emt 0:00:11]} Nd5 {[%emt 0:01:32]} 47. e8=Q {[%emt 0:01:08]} Rxe8 {[%emt 0:00:06]} 48. Nxe8 {[%emt 0:00:04]} Nxc3 {[%emt 0:00:02]} 49. Ra1 {[%emt 0:04:51]} a5 {[%emt 0:01:20]} 50. Nd6 {[%emt 0:00:27]} Ka6 {[%emt 0:00:44]} 51. Ra3 {[%emt 0:01:36]} Nxa4 {[%emt 0:00:35]} 52. Rxa4 {[%emt 0:00:03]} b5 {[%emt 0:00:03]} 53. Ra1 {[%emt 0:00:52]} a4 {[%emt 0:00:19]} 54. Rb1 {[%emt 0:00:46]} a3 {[%emt 0:00:14]} 55. Nxb5 {[%emt 0:00:06]} a2 {[%emt 0:00:06]} 56. Nc7+ {[%emt 0:00:11]} 1-0

[Event "Cracovia Festival-A 2023"]
[Site "Krakow"]
[Date "2024.01.02"]
[Round "6.39"]
[White "Gkavardinas, Antonios"]
[Black "Baum, Jonasz"]
[Result "1/2-1/2"]
[ECO "C50"]
[WhiteElo "2141"]
[BlackElo "2421"]
[Annotator "RC"]
[PlyCount "76"]
[EventDate "2023.12.24"]
[EventType "swiss"]
[EventCountry "POL"]
[SourceTitle "playchess.com"]
[Source "ChessBase"]
[SourceQuality "1"]
[TimeControl "40/5400+30:1800+30"]

1. e4 {[%emt 0:00:03]} e5 {[%emt 0:00:13]} 2. Nf3 {[%emt 0:00:07]} Nc6 {[%emt 0:00:04]} 3. Bc4 {[%emt 0:00:10]} Bc5 {[%emt 0:00:06]} 4. d3 {[%emt 0:00:12]} Nf6 {[%emt 0:00:50]} 5. O-O {[%emt 0:00:11]} d6 {[%emt 0:00:29]} 6. c3 {[%emt 0:00:25]} a5 {[%emt 0:00:15]} 7. Re1 {[%emt 0:02:10]} Ba7 {[%emt 0:00:13]} 8. Nbd2 {[%emt 0:01:13]} O-O {[%emt 0:00:30]} 9. h3 {[%emt 0:01:19]} Be6 {[%emt 0:00:31]} 10. Bb5 {[%emt 0:00:58]} Ne7 {[%emt 0:00:09]} 11. d4 {[%emt 0:01:14]} Ng6 {[%emt 0:00:09]} 12. Bf1 {[%emt 0:04:33]} c6 {[%emt 0:12:32]} 13. a4 {[%emt 0:03:40]} Qc7 {[%emt 0:11:20]} 14. Qc2 {[%emt 0:02:23]} Rad8 {[%emt 0:01:44]} 15. Nc4 {[%emt 0:06:52]} Bxc4 {[%emt 0:14:29]} 16. Bxc4 {[%emt 0:00:04]} d5 {[%emt 0:00:07]} 17. exd5 {[%emt 0:04:38]} cxd5 {[%emt 0:07:00]} 18. Bb3 {[%emt 0:08:08]} e4 {[%emt 0:00:25]} 19. Nh2 {[%emt 0:00:28]} Bb8 {[%emt 0:08:01]} 20. g3 {[%emt 0:03:29]} Nh5 {[%emt 0:01:15]} 21. Nf1 {[%emt 0:04:50]} f5 {[%emt 0:06:03]} 22. Bg5 {[%emt 0:03:13]} Kh8 {[%emt 0:09:14]} 23. Bxd8 {[%emt 0:03:35]} Qxd8 {[%emt 0:00:05]} 24. Qd1 {[%emt 0:05:36]} Qg5 {[%emt 0:01:19]} 25. Kh1 {[%emt 0:04:26]} Nhf4 {[%emt 0:04:52]} 26. Nh2 {[%emt 0:12:11]} Nxh3 {[%emt 0:01:27]} 27. Rf1 {[%emt 0:00:50]} Ne7 {[%emt 0:12:13]} 28. Qe2 {[%emt 0:06:17]} Rf6 {[%emt 0:00:41]} 29. Qb5 {[%emt 0:01:29]} Rf8 {[%emt 0:02:48]} 30. Bxd5 {[%emt 0:04:34]} e3 {[%emt 0:01:29]} 31. Nf3 {[%emt 0:06:41]} Qh6 {[%emt 0:00:28]} 32. Kg2 {[%emt 0:02:17]} Nxf2 {[%emt 0:00:10]} 33. Rxf2 {[%emt 0:01:21]} exf2 {[%emt 0:00:06]} 34. Kxf2 {[%emt 0:02:35]} Qd6 {[%emt 0:00:56]} 35. Bxb7 {[%emt 0:00:17]} Qxg3+ {[%emt 0:00:05]} 36. Ke2 {[%emt 0:00:10]} Qg2+ {[%emt 0:02:26]} 37. Kd3 {[%emt 0:01:06]} Ng6 {[%emt 0:00:19]} 38. Re1 {[%emt 0:01:22]} Nf4+ {[%emt 0:02:06]} 1/2-1/2

[Event "Cracovia Festival-A 2023"]
[Site "Krakow"]
[Date "2024.01.02"]
[Round "6.40"]
[White "Loftgaard, Mikkel Vinh"]
[Black "Flak, Pawel"]
[Result "1-0"]
[ECO "B03"]
[WhiteElo "2322"]
[BlackElo "2145"]
[Annotator "RC"]
[PlyCount "119"]
[EventDate "2023.12.24"]
[EventType "swiss"]
[EventCountry "POL"]
[SourceTitle "playchess.com"]
[Source "ChessBase"]
[SourceQuality "1"]
[TimeControl "40/5400+30:1800+30"]

1. e4 {[%emt 0:00:41]} Nf6 {[%emt 0:09:04]} 2. e5 {[%emt 0:00:31]} Nd5 {[%emt 0:00:02]} 3. d4 {[%emt 0:00:08]} d6 {[%emt 0:00:01]} 4. c4 {[%emt 0:00:07]} Nb6 {[%emt 0:00:01]} 5. f4 {[%emt 0:00:10]} Bf5 {[%emt 0:00:02]} 6. Nc3 {[%emt 0:00:09]} dxe5 {[%emt 0:00:01]} 7. fxe5 {[%emt 0:00:11]} e6 {[%emt 0:00:01]} 8. Be3 {[%emt 0:00:34]} Nc6 {[%emt 0:00:23]} 9. Nf3 {[%emt 0:00:20]} Bb4 {[%emt 0:00:02]} 10. Qd2 {[%emt 0:07:33]} Na4 {[%emt 0:01:11]} 11. Be2 {[%emt 0:10:53]} Na5 {[%emt 0:19:01]} 12. c5 {[%emt 0:04:55]} c6 {[%emt 0:06:38]} 13. Qc1 {[%emt 0:15:40]} b5 {[%emt 0:05:49]} 14. O-O {[%emt 0:05:10]} Bxc3 {[%emt 0:01:32]} 15. bxc3 {[%emt 0:01:45]} Nc4 {[%emt 0:00:06]} 16. Bxc4 {[%emt 0:03:00]} bxc4 {[%emt 0:00:09]} 17. Qa3 {[%emt 0:08:28]} Qa5 {[%emt 0:00:14]} 18. Rac1 {[%emt 0:01:42]} O-O {[%emt 0:03:24]} 19. Nd2 {[%emt 0:05:41]} Qa6 {[%emt 0:08:08]} 20. Rf3 {[%emt 0:05:53]} Rab8 {[%emt 0:04:27]} 21. h4 {[%emt 0:02:50]} Bd3 {[%emt 0:08:33]} 22. Rg3 {[%emt 0:06:12]} Kh8 {[%emt 0:00:41]} 23. Bg5 {[%emt 0:01:23]} Rfe8 {[%emt 0:02:37]} 24. Rxd3 {[%emt 0:06:50]} cxd3 {[%emt 0:00:24]} 25. Ne4 {[%emt 0:00:53]} Rb2 {[%emt 0:02:53]} 26. c4 {[%emt 0:01:00]} Nxc5 {[%emt 0:04:43]} 27. Qxb2 {[%emt 0:03:32]} Nxe4 {[%emt 0:00:04]} 28. Qb3 {[%emt 0:00:18]} d2 {[%emt 0:07:22]} 29. Rd1 {[%emt 0:00:01]} Qa5 {[%emt 0:00:09]} 30. Qf3 {[%emt 0:02:36]} Qa4 {[%emt 0:00:48]} 31. Bxd2 {[%emt 0:00:35]} Rb8 {[%emt 0:03:11]} 32. Be3 {[%emt 0:00:22]} Qc2 {[%emt 0:01:19]} 33. Rf1 {[%emt 0:01:09]} Qd3 {[%emt 0:08:49]} 34. Kh2 {[%emt 0:00:42]} f5 {[%emt 0:03:34]} 35. exf6 {[%emt 0:00:19]} Nxf6 {[%emt 0:00:04]} 36. Bf4 {[%emt 0:00:56]} Qxf3 {[%emt 0:00:13]} 37. Rxf3 {[%emt 0:00:05]} Rb4 {[%emt 0:00:54]} 38. Rc3 {[%emt 0:03:30]} Ra4 {[%emt 0:00:18]} 39. Rc2 {[%emt 0:00:38]} Kg8 {[%emt 0:00:02]} 40. Kh3 {[%emt 0:00:00]} Ra3+ {[%emt 0:00:00]} 41. g3 {[%emt 0:00:31]} h5 {[%emt 0:03:42]} 42. Kg2 {[%emt 0:02:59]} Ng4 {[%emt 0:01:29]} 43. Rb2 {[%emt 0:02:19]} Kh7 {[%emt 0:00:38]} 44. Re2 {[%emt 0:01:50]} Ra4 {[%emt 0:01:25]} 45. c5 {[%emt 0:01:06]} a5 {[%emt 0:06:48]} 46. Kg1 {[%emt 0:05:32]} Kg6 {[%emt 0:05:26]} 47. Rxe6+ {[%emt 0:04:15]} Kf5 {[%emt 0:00:01]} 48. Rxc6 {[%emt 0:03:10]} Rxa2 {[%emt 0:00:34]} 49. Rb6 {[%emt 0:00:14]} g5 {[%emt 0:11:02]} 50. Bxg5 {[%emt 0:09:15]} Ke4 {[%emt 0:00:32]} 51. c6 {[%emt 0:00:36]} a4 {[%emt 0:02:47]} 52. c7 {[%emt 0:00:30]} Rc2 {[%emt 0:00:10]} 53. Bf4 {[%emt 0:00:26]} a3 {[%emt 0:02:24]} 54. Ra6 {[%emt 0:00:09]} Nf2 {[%emt 0:01:33]} 55. Ra8 {[%emt 0:02:35]} Nh3+ {[%emt 0:01:41]} 56. Kf1 {[%emt 0:00:01]} a2 {[%emt 0:00:45]} 57. Rxa2 {[%emt 0:00:14]} Rxa2 {[%emt 0:00:20]} 58. c8=Q {[%emt 0:00:09]} Ra1+ {[%emt 0:00:15]} 59. Bc1 {[%emt 0:00:10]} Kf3 {[%emt 0:00:53]} 60. Qc3+ {[%emt 0:00:03]} 1-0

[Event "Cracovia Festival-A 2023"]
[Site "Krakow"]
[Date "2024.01.02"]
[Round "6.41"]
[White "Yezhel, Valiantsin"]
[Black "Pacuszka, Tomasz"]
[Result "1-0"]
[ECO "D02"]
[WhiteElo "2311"]
[BlackElo "2124"]
[Annotator "RC"]
[PlyCount "69"]
[EventDate "2023.12.24"]
[EventType "swiss"]
[EventCountry "POL"]
[SourceTitle "playchess.com"]
[Source "ChessBase"]
[SourceQuality "1"]
[TimeControl "40/5400+30:1800+30"]

1. d4 {[%emt 0:02:23]} d5 {[%emt 0:00:38]} 2. Nf3 {[%emt 0:01:07]} Nf6 {[%emt 0:00:13]} 3. g3 {[%emt 0:00:05]} e6 {[%emt 0:00:07]} 4. Bg2 {[%emt 0:00:03]} Be7 {[%emt 0:00:06]} 5. O-O {[%emt 0:00:03]} O-O {[%emt 0:00:05]} 6. c4 {[%emt 0:00:02]} c6 {[%emt 0:00:06]} 7. Qc2 {[%emt 0:00:38]} b6 {[%emt 0:01:23]} 8. Nbd2 {[%emt 0:01:20]} Bb7 {[%emt 0:00:17]} 9. e4 {[%emt 0:00:51]} Na6 {[%emt 0:00:09]} 10. b3 {[%emt 0:12:47]} c5 {[%emt 0:07:10]} 11. exd5 {[%emt 0:03:30]} exd5 {[%emt 0:00:28]} 12. Bb2 {[%emt 0:01:05]} h6 {[%emt 0:17:07]} 13. dxc5 {[%emt 0:01:05]} Nxc5 {[%emt 0:02:07]} 14. Nd4 {[%emt 0:04:08]} Nce4 {[%emt 0:06:46]} 15. Nf5 {[%emt 0:01:52]} Bc5 {[%emt 0:04:33]} 16. Nxe4 {[%emt 0:06:57]} dxe4 {[%emt 0:00:07]} 17. Rad1 {[%emt 0:00:05]} Qc8 {[%emt 0:00:26]} 18. Nd6 {[%emt 0:04:44]} Bxd6 {[%emt 0:04:03]} 19. Rxd6 {[%emt 0:00:42]} Ne8 {[%emt 0:01:13]} 20. Qc3 {[%emt 0:04:01]} f6 {[%emt 0:02:51]} 21. Rd2 {[%emt 0:01:50]} Rf7 {[%emt 0:01:00]} 22. Rfd1 {[%emt 0:00:26]} Qe6 {[%emt 0:01:16]} 23. Qe3 {[%emt 0:02:29]} f5 {[%emt 0:05:11]} 24. c5 {[%emt 0:01:44]} b5 {[%emt 0:00:31]} 25. Bf1 {[%emt 0:08:49]} Bc6 {[%emt 0:01:10]} 26. Be2 {[%emt 0:00:07]} f4 {[%emt 0:12:00]} 27. gxf4 {[%emt 0:01:39]} Qf5 {[%emt 0:02:13]} 28. Be5 {[%emt 0:01:54]} Kh7 {[%emt 0:04:51]} 29. Qg3 {[%emt 0:02:57]} Nf6 {[%emt 0:02:16]} 30. Rd6 {[%emt 0:00:13]} Be8 {[%emt 0:01:48]} 31. c6 {[%emt 0:01:59]} Rc8 {[%emt 0:02:25]} 32. Bxf6 {[%emt 0:03:01]} Qxf6 {[%emt 0:05:18]} 33. Rxf6 {[%emt 0:00:20]} Rxf6 {[%emt 0:00:09]} 34. f5 {[%emt 0:02:46]} Bxc6 {[%emt 0:01:06]} 35. Rd6 {[%emt 0:00:36]} 1-0